bitfinex/quotes_ETHUSD_20250326
["timestamp","ask_amount","ask_price","bid_price","bid_amount"]
[1743011218364,16.28502949,2012.2,2012.1,0.07]
[1743011219065,16.6562504,2012.2,2012.1,0.07]
[1743011220174,20.83576336,2012.2,2012.1,0.07]
[1743011220368,4.97154,2011.5,2011.1,11.89489]
[1743011220551,4.17951296,2011.4,2011.2,4.97214]
[1743011220751,9.07751296,2011.6,2011.1,7.93264767]
[1743011220964,9.13966033,2011.6,2011.3,4.97181]
[1743011221288,4.17951296,2011.4,2011.3,4.97181]
[1743011221760,4.17951296,2011.4,2011.1,12.90502767]
[1743011221761,4.17951296,2011.4,2011.2,4.97208]
[1743011221960,4.17951296,2011.4,2011.2,4.97204]
[1743011222264,0.06215081,2011.3,2011.1,11.89498]
[1743011222469,4.17951296,2011.2,2011.1,4.97238]
[1743011222789,4.17951296,2011.4,2011.2,4.97213]
[1743011222956,0.83725176,2011.5,2011.2,4.97213]
[1743011222957,9.07851296,2011.6,2011.4,4.97155]
[1743011223390,12.07851296,2011.8,2011.5,4.97141]
[1743011223592,12.07851296,2011.8,2011.6,4.97102]
[1743011224242,12.07851296,2011.8,2011.7,4.97092]
[1743011224442,7.17951296,2011.8,2011.6,4.97102]
[1743011224888,7.17951296,2011.8,2011.7,4.97092]
[1743011225065,7.17951296,2011.8,2011.6,4.97102]
[1743011225267,7.17951296,2011.8,2011.6,9.94204]
[1743011225585,7.24164943,2011.8,2011.6,4.97102]
[1743011226697,7.24164943,2011.8,2011.6,9.94204]
[1743011226857,7.17951296,2011.8,2011.6,4.97102]
[1743011227684,3.0,2011.9,2011.7,4.97073]
[1743011227878,3.06213656,2011.9,2011.7,4.97073]
[1743011228073,4.17951296,2011.8,2011.5,5.79712]
[1743011228381,4.17951296,2011.8,2011.4,5.97759284]
[1743011228382,4.17951296,2011.6,2011.4,4.97163]
[1743011228589,0.06214314,2011.5,2011.3,4.97187]
[1743011228762,4.24165814,2011.6,2011.3,9.94367]
[1743011228969,4.24165814,2011.6,2011.3,4.9718]
[1743011229665,4.24165814,2011.6,2011.3,4.97179]
[1743011229867,9.21292814,2011.6,2011.2,16.86201]
[1743011230256,9.21292814,2011.6,2011.2,11.88992]
[1743011230457,10.63057084,2011.6,2011.2,11.88992]
[1743011230657,4.97142,2011.5,2011.2,11.88992]
[1743011231069,3.0,2011.6,2011.3,4.97174]
[1743011231280,3.06214342,2011.6,2011.3,4.97174]
[1743011231496,3.06214342,2011.6,2011.4,4.97164]
[1743011232077,3.06214342,2011.6,2011.3,4.97174]
[1743011232280,12.21293638,2011.6,2011.2,11.88996]
[1743011232481,12.15079296,2011.6,2011.3,4.97184]
[1743011232971,3.0,2011.7,2011.5,4.97129]
[1743011233300,3.0,2011.7,2011.5,5.79173]
[1743011234071,3.0,2011.7,2011.4,4.97161]
[1743011234483,3.06214024,2011.7,2011.4,4.97161]
[1743011234705,3.06214024,2011.7,2011.4,9.94318]
[1743011235001,3.06214024,2011.7,2011.4,4.97157]
[1743011235391,3.06214024,2011.7,2011.4,9.94308]
[1743011236305,3.06214024,2011.7,2011.5,4.97138]
[1743011236484,3.06214024,2011.7,2011.5,4.97133]
[1743011238190,13.00429024,2011.7,2011.3,7.51731278]
[1743011238390,7.971,2011.7,2011.3,10.70432]
[1743011238595,8.03314454,2011.7,2011.3,5.73255]
[1743011238901,8.03314454,2011.7,2011.3,10.7043]
[1743011239107,13.00421454,2011.7,2011.3,5.73255]
[1743011239418,4.97119,2011.6,2011.3,5.73268]
[1743011239623,8.78923,2011.7,2011.3,5.73268]
[1743011240135,3.0,2011.7,2011.3,5.73266]
[1743011240421,8.03312636,2011.7,2011.3,7.51354434]
[1743011240583,8.03312636,2011.7,2011.3,5.7326]
[1743011240914,4.97143,2011.5,2011.2,6.12]
[1743011241114,5.03358005,2011.5,2011.2,6.12]
[1743011242172,10.00520005,2011.5,2011.2,6.12]
[1743011242371,4.97143,2011.5,2011.2,6.12]
[1743011242578,3.06215031,2011.5,2011.2,6.12]
[1743011242781,3.0,2011.6,2011.4,4.97164]
[1743011242980,8.03320491,2011.7,2011.4,0.829]
[1743011243409,7.97155,2011.5,2011.1,4.97217]
[1743011243581,3.06214967,2011.5,2011.1,4.97217]
[1743011243787,3.06214967,2011.5,2011.2,5.75182]
[1743011244025,3.06214967,2011.5,2011.2,0.7798]
[1743011244318,8.03365967,2011.5,2011.1,9.94466]
[1743011244528,8.03365967,2011.5,2011.2,4.97207]
[1743011244826,12.94211,2011.7,2011.3,5.7516]
[1743011244994,0.06214343,2011.6,2011.3,5.7516]
[1743011245498,0.06214343,2011.6,2011.3,10.72337]
[1743011245807,0.06214343,2011.6,2011.3,5.75157]
[1743011246010,3.0,2011.7,2011.4,4.97154]
[1743011246734,3.06213999,2011.7,2011.4,4.97154]
[1743011246942,3.06213999,2011.7,2011.4,9.94305]
[1743011247240,3.06213999,2011.7,2011.5,4.9714]
[1743011247440,3.06213999,2011.7,2011.4,4.97151]
[1743011248120,0.808,2012.0,2011.6,4.971]
[1743011248121,5.77818,2012.0,2011.6,4.971]
[1743011248312,5.84031843,2012.0,2011.7,4.97088]
[1743011248513,3.0,2011.9,2011.7,4.97088]
[1743011249240,4.97079,2011.8,2011.4,5.73398]
[1743011249542,9.15055296,2011.7,2011.3,4.97188]
[1743011249858,10.4469716,2011.7,2011.3,4.97188]
[1743011250738,5.03348555,2011.6,2011.2,5.73454]
[1743011251035,10.82944555,2011.6,2011.2,5.73454]
[1743011251210,10.7673,2011.6,2011.2,5.73454]
[1743011251405,5.03362639,2011.5,2011.2,0.7624]
[1743011251610,4.97275,2011.0,2010.8,0.8135]
[1743011251817,4.17951296,2011.0,2010.7,11.09329]
[1743011252020,4.24167525,2011.0,2010.7,6.12]
[1743011252220,3.0,2011.0,2010.7,11.09315]
[1743011252428,5.03458229,2011.1,2010.8,4.97302]
[1743011252710,5.03458229,2011.1,2010.7,11.09315]
[1743011252910,0.06216229,2011.1,2010.8,4.97303]
[1743011253316,4.17951296,2011.2,2010.9,4.97275]
[1743011253548,6.52581879,2011.2,2010.7,11.09338]
[1743011253743,4.17951296,2011.0,2010.7,16.06662]
[1743011253911,7.17951296,2011.0,2010.7,16.06662]
[1743011254107,3.0,2011.0,2010.8,9.9461]
[1743011254343,3.0,2011.0,2010.9,4.97289]
[1743011254747,4.97326,2010.8,2010.2,0.821]
[1743011255047,4.97349,2010.7,2010.3,4.99993937]
[1743011255206,9.15284296,2010.8,2010.4,4.974]
[1743011255561,9.21499637,2010.8,2010.4,4.97399]
[1743011255719,9.15282296,2010.8,2010.4,9.94802]
[1743011255916,9.15282296,2010.8,2010.5,4.97388]
[1743011256415,4.97413,2010.4,2010.1,0.07]
[1743011256620,4.17951296,2010.2,2010.1,0.07]
[1743011256817,9.15413296,2010.2,2010.1,0.07]
[1743011257033,14.05213296,2010.2,2010.1,0.07]
[1743011257751,9.07751296,2010.2,2010.1,0.07]
[1743011258156,14.11432125,2010.2,2010.1,0.07]
[1743011258336,9.07751296,2010.2,2010.1,0.07]
[1743011258852,9.13970123,2010.2,2010.1,0.07]
[1743011259049,14.11432123,2010.2,2010.1,0.07]
[1743011259248,15.90501122,2010.2,2010.1,0.07]
[1743011259431,36.8960348,2010.2,2010.1,0.07]
[1743011260518,36.5754668,2010.2,2010.1,0.07]
[1743011261126,19.8261068,2010.2,2010.1,0.07]
[1743011261331,23.9989248,2010.2,2010.1,0.07]
[1743011261532,4.97619,2009.6,2009.2,5.80837]
[1743011261751,0.06220935,2009.5,2009.2,10.78534]
[1743011263253,0.06220935,2009.5,2009.2,5.80837]
[1743011263448,0.06220935,2009.5,2009.2,5.80833]
[1743011265062,0.06220935,2009.5,2009.2,10.78527]
[1743011265262,0.06220935,2009.5,2009.3,4.97681]
[1743011265755,0.06220935,2009.5,2009.2,5.80833]
[1743011266257,0.06220935,2009.5,2009.2,4.97693]
[1743011266564,9.90670296,2009.4,2009.0,4.97748]
[1743011266750,0.06221555,2009.3,2009.0,4.97748]
[1743011267145,0.06221555,2009.3,2009.0,4.97744]
[1743011267759,0.06221555,2009.3,2009.0,9.95489]
[1743011268165,0.06221555,2009.3,2009.0,4.97744]
[1743011268343,0.06221555,2009.3,2009.1,4.97723]
[1743011268540,4.24173066,2009.4,2009.2,4.9771]
[1743011268760,4.24173066,2009.4,2009.1,10.77561]
[1743011269060,4.96321554,2009.5,2009.3,4.97685]
[1743011269433,4.96321554,2009.5,2009.2,9.95385]
[1743011269870,4.17951296,2009.4,2009.1,5.79832]
[1743011270028,4.17951296,2009.4,2009.2,4.9771]
[1743011270364,4.24172538,2009.4,2009.2,4.97702]
[1743011272498,4.24172538,2009.4,2009.1,9.95434]
[1743011273199,4.24172538,2009.4,2009.2,4.97708]
[1743011274494,4.24172538,2009.4,2009.2,9.95409]
[1743011274677,4.24172538,2009.4,2009.3,4.97685]
[1743011274991,4.17951296,2009.4,2009.2,4.97701]
[1743011275494,4.17951296,2009.4,2009.2,9.95399]
[1743011275698,4.17951296,2009.4,2009.2,9.95396]
[1743011276000,4.17951296,2009.4,2009.2,4.97698]
[1743011279183,4.17951296,2009.4,2009.2,4.97697]
[1743011279383,4.24172537,2009.4,2009.2,4.97697]
[1743011280706,4.24172537,2009.4,2009.3,4.97685]
[1743011280898,4.24172537,2009.4,2009.2,4.97697]
[1743011283592,4.24172537,2009.4,2009.3,4.97685]
[1743011283919,0.06221147,2009.5,2009.3,5.80605]
[1743011284143,0.3823777,2009.6,2009.4,4.97636]
[1743011284428,4.97611,2009.6,2009.3,4.97677]
[1743011284736,10.03624766,2009.5,2009.2,19.47706]
[1743011284913,0.06221238,2009.4,2009.2,4.97706]
[1743011285109,0.06221238,2009.4,2009.2,4.97699]
[1743011285405,0.06221238,2009.4,2009.2,9.95395]
[1743011285612,5.05982534,2009.5,2009.3,4.97685]
[1743011285815,4.24172534,2009.5,2009.3,4.97685]
[1743011286015,10.71776687,2009.5,2009.2,4.97696]
[1743011286220,4.17951296,2009.5,2009.2,9.95393]
[1743011286511,4.24172532,2009.5,2009.2,9.95393]
[1743011286710,4.24172532,2009.5,2009.2,4.97696]
[1743011287027,0.06221236,2009.5,2009.3,4.97684]
[1743011288044,0.06221236,2009.5,2009.3,4.97672]
[1743011289201,0.06221236,2009.5,2009.2,4.97707]
[1743011290105,5.03864236,2009.5,2009.3,0.37354745]
[1743011290339,10.25683807,2009.5,2009.3,0.37354745]
[1743011290546,4.9766,2009.4,2009.3,0.37354745]
[1743011290887,5.03881223,2009.4,2009.3,0.37354745]
[1743011291188,0.06221223,2009.4,2009.3,0.37354745]
[1743011291564,0.06221223,2009.4,2009.1,5.80202]
[1743011292140,0.06221223,2009.4,2009.1,10.77921]
[1743011292474,0.06221223,2009.4,2009.2,0.37369701]
[1743011293579,0.06221223,2009.4,2009.2,5.35077701]
[1743011293786,0.06221223,2009.4,2009.2,4.97708]
[1743011294144,0.06221223,2009.4,2009.1,5.80199]
[1743011294782,0.06221223,2009.4,2009.1,10.77921]
[1743011295083,0.06221223,2009.4,2009.1,5.80199]
[1743011295288,0.06221223,2009.4,2009.1,10.77921]
[1743011295448,0.06221223,2009.4,2009.2,4.97708]
[1743011295647,0.06221222,2009.5,2009.2,4.97708]
[1743011296292,0.06221222,2009.5,2009.2,5.35084587]
[1743011297091,0.36647216,2009.6,2009.3,4.97678]
[1743011297271,4.901,2009.6,2009.4,4.9766]
[1743011297478,4.901,2009.6,2009.3,4.97678]
[1743011298207,0.06220753,2009.5,2009.2,4.97705]
[1743011298504,5.03856753,2009.5,2009.4,0.37370597]
[1743011298711,0.06220753,2009.5,2009.4,0.37370597]
[1743011300005,0.06220753,2009.5,2009.2,4.97696]
[1743011300368,3.06220753,2009.5,2009.1,5.80213]
[1743011300569,8.03865753,2009.5,2009.1,5.80206]
[1743011301209,8.03865753,2009.5,2009.2,4.97702]
[1743011301511,3.06220753,2009.5,2009.2,9.95397]
[1743011301672,3.06220753,2009.5,2009.2,4.97695]
[1743011302104,8.03857753,2009.5,2009.1,5.8021]
[1743011302414,8.03857753,2009.5,2009.1,10.77935]
[1743011302807,8.03857753,2009.5,2009.1,5.80205]
[1743011303106,14.84452872,2009.5,2009.1,5.80205]
[1743011303281,9.80582119,2009.5,2009.1,5.80205]
[1743011303472,9.80582119,2009.5,2009.2,5.35083693]
[1743011303673,9.80582119,2009.5,2009.2,0.37375693]
[1743011303884,14.78234119,2009.5,2009.2,0.37375693]
[1743011304090,9.80582119,2009.5,2009.2,0.37375693]
[1743011304265,4.97685,2009.3,2009.2,0.37375693]
[1743011304470,5.0390648,2009.3,2009.2,0.37375693]
[1743011304671,5.0390648,2009.3,2008.9,5.74327]
[1743011304973,5.0390648,2009.3,2008.9,5.74321]
[1743011305171,4.97737,2009.1,2008.7,4.97815]
[1743011305374,7.2208089,2009.1,2008.7,0.8325]
[1743011305615,4.97762,2009.0,2008.6,9.95685]
[1743011305818,5.03984695,2009.0,2008.6,9.95685]
[1743011305999,5.03984695,2009.0,2008.6,9.95689]
[1743011306173,4.97785,2008.9,2008.5,0.9395897]
[1743011306374,0.0622292,2008.9,2008.6,4.97855]
[1743011306680,9.21934145,2009.0,2008.6,4.97855]
[1743011306875,4.24174145,2009.0,2008.6,5.3520449]
[1743011307109,10.63996,2009.1,2008.7,4.97819]
[1743011307716,10.63996,2009.1,2008.6,8.04319836]
[1743011307890,5.03991475,2009.0,2008.6,5.3520349]
[1743011308293,5.03984475,2009.0,2008.7,4.97823]
[1743011308593,5.03984475,2009.0,2008.6,4.97844]
[1743011308893,5.03984475,2009.0,2008.6,9.95688]
[1743011309810,5.03984475,2009.0,2008.7,4.97829]
[1743011310107,10.63997,2009.1,2008.7,4.97818]
[1743011310311,7.901,2009.1,2008.8,5.79676]
[1743011310475,8.26988066,2009.1,2008.9,4.97784]
[1743011311007,8.26988066,2009.1,2008.8,5.79676]
[1743011311209,8.33210278,2009.1,2008.8,0.8189]
[1743011311377,8.26988066,2009.1,2008.8,10.77466]
[1743011311573,3.36888066,2009.1,2008.8,10.77466]
[1743011311809,7.901,2009.2,2009.0,4.97746]
[1743011312117,4.901,2009.2,2009.0,9.95491]
[1743011312608,0.37954087,2009.3,2009.1,4.97735]
[1743011312810,3.06221408,2009.4,2009.1,4.97735]
[1743011313009,3.06221408,2009.4,2009.1,5.78155]
[1743011313314,4.901,2009.5,2009.3,4.97675]
[1743011313476,4.9632091,2009.5,2009.3,4.97675]
[1743011314000,4.96320911,2009.5,2009.3,4.97675]
[1743011314516,4.96320911,2009.5,2009.2,4.9769]
[1743011314814,4.901,2009.5,2009.3,4.97685]
[1743011315906,5.28220058,2009.5,2009.3,4.97685]
[1743011316115,5.34440966,2009.5,2009.2,9.95386]
[1743011316511,5.34440966,2009.5,2009.2,4.9769]
[1743011316814,5.34440966,2009.5,2009.2,9.95386]
[1743011317014,5.34440966,2009.5,2009.1,5.78162]
[1743011317314,10.32087966,2009.5,2009.1,5.78162]
[1743011317502,4.97661,2009.4,2009.1,5.78162]
[1743011317708,5.28220058,2009.5,2009.1,0.8043]
[1743011318016,5.34441152,2009.5,2009.2,4.97693]
[1743011318203,5.34441152,2009.5,2009.3,4.97685]
[1743011318400,4.901,2009.5,2009.3,4.97669]
[1743011318602,4.901,2009.5,2009.4,4.9766]
[1743011319001,8.6742,2009.7,2009.4,4.97647]
[1743011319185,13.71227597,2009.7,2009.4,4.97647]
[1743011319379,3.0,2009.7,2009.4,4.97647]
[1743011320011,3.36803251,2009.7,2009.4,4.97647]
[1743011320225,8.34392251,2009.7,2009.4,4.97647]
[1743011320441,4.97612,2009.6,2009.3,4.97682]
[1743011320929,5.03832418,2009.6,2009.3,4.97682]
[1743011321088,0.7927,2009.5,2009.2,5.34988699]
[1743011321293,0.7927,2009.5,2009.3,4.97683]
[1743011321529,0.06220418,2009.6,2009.3,9.95352]
[1743011321735,0.06220418,2009.6,2009.3,4.97669]
[1743011322028,0.06220418,2009.6,2009.3,9.95345]
[1743011322234,13.91023776,2009.7,2009.4,4.97656]
[1743011322432,3.36803251,2009.7,2009.4,9.95304]
[1743011322804,3.0,2009.7,2009.5,4.97611]
[1743011324096,7.97596,2009.7,2009.4,5.74341]
[1743011324296,7.97596,2009.7,2009.4,4.97651]
[1743011324639,8.0381592,2009.7,2009.4,4.97647]
[1743011324807,13.0142392,2009.7,2009.3,4.97681]
[1743011325006,12.95204,2009.7,2009.3,4.97681]
[1743011325217,0.06220405,2009.6,2009.3,4.97681]
[1743011325529,0.06220405,2009.6,2009.3,4.97678]
[1743011325734,0.06220405,2009.6,2009.2,0.7646]
[1743011325735,5.80049405,2009.6,2009.2,9.95404]
[1743011326233,5.80049405,2009.6,2009.3,4.97685]
[1743011327338,5.80049405,2009.6,2009.2,4.97698]
[1743011327631,5.80046405,2009.6,2009.2,9.95393]
[1743011328973,5.80046405,2009.6,2009.3,4.97684]
[1743011329371,10.77676405,2009.6,2009.2,4.97692]
[1743011329671,5.73826,2009.6,2009.3,4.97685]
[1743011329880,5.8004684,2009.6,2009.3,4.97685]
[1743011330481,0.8242084,2009.6,2009.4,4.9766]
[1743011330773,7.97599,2009.7,2009.4,5.47426]
[1743011330933,7.97599,2009.7,2009.4,4.9766]
[1743011331534,8.03819435,2009.7,2009.4,4.9766]
[1743011334947,10.0,2009.5,2009.4,4.9766]
[1743011337291,10.0,2009.5,2009.4,5.7313]
[1743011337447,10.0,2009.5,2009.4,4.9766]
[1743011338052,10.0,2009.5,2009.4,6.83340212]
[1743011338390,10.0,2009.5,2009.4,6.807615]
[1743011339088,10.0,2009.5,2009.4,0.7602]
[1743011339253,10.0,2009.5,2009.3,11.09685]
[1743011339453,10.0,2009.5,2009.4,4.9766]
[1743011342382,10.0,2009.5,2009.3,11.09685]
[1743011342383,10.0,2009.5,2009.3,6.12]
[1743011343287,10.0,2009.5,2009.3,11.09685]
[1743011343658,10.0,2009.5,2009.3,16.0736]
[1743011344195,10.0,2009.5,2009.3,11.09675]
[1743011344487,10.0,2009.5,2009.3,6.12]
[1743011344983,5.79755,2009.4,2009.1,15.50058845]
[1743011345284,5.85975568,2009.4,2009.0,4.97751]
[1743011345688,5.85975568,2009.4,2009.0,9.95497]
[1743011346078,5.85975568,2009.4,2009.0,4.97746]
[1743011346391,10.83653568,2009.4,2009.0,4.97746]
[1743011346718,5.79755,2009.4,2009.0,9.95491]
[1743011346989,10.83654521,2009.4,2009.0,4.97745]
[1743011347175,5.79755,2009.4,2009.0,9.95482]
[1743011347376,5.85976521,2009.4,2009.1,4.97732]
[1743011347777,8.55291423,2009.4,2009.1,4.97732]
[1743011347991,13.52971423,2009.4,2009.0,4.97737]
[1743011348283,4.97693,2009.3,2009.0,4.97737]
[1743011348483,9.97706296,2009.4,2009.0,9.9548]
[1743011349366,0.0622152,2009.3,2009.0,9.9548]
[1743011350206,4.97713,2009.2,2008.9,5.77997]
[1743011350566,2.29076897,2009.2,2008.7,6.8987]
[1743011350763,4.97789,2008.9,2008.7,6.12]
[1743011351066,9.15720296,2009.0,2008.7,6.12]
[1743011351262,3.06222697,2009.0,2008.7,11.09824]
[1743011351477,4.97787,2008.9,2008.7,6.12]
[1743011353295,9.87461,2009.0,2008.7,6.12]
[1743011353487,0.06222912,2008.9,2008.7,6.12]
[1743011353676,5.04011912,2008.9,2008.7,6.12]
[1743011354083,5.04011912,2008.9,2008.6,4.97846]
[1743011354084,19.03191296,2009.0,2008.6,4.97846]
[1743011354288,5.04015911,2008.9,2008.6,4.97846]
[1743011354797,5.04015911,2008.9,2008.5,0.1186897]
[1743011354798,5.73256,2008.8,2008.5,0.1186897]
[1743011355007,5.0407253,2008.7,2008.5,0.1186897]
[1743011355487,0.0622353,2008.7,2008.5,0.1186897]
[1743011355687,5.0406153,2008.7,2008.5,0.1186897]
[1743011357775,12.97610296,2008.6,2008.5,0.1186897]
[1743011357979,14.77777479,2008.6,2008.5,0.1186897]
[1743011360203,15.15500855,2008.6,2008.5,0.1186897]
[1743011361578,10.97549559,2008.6,2008.5,0.1186897]
[1743011361787,8.27523376,2008.6,2008.5,0.1186897]
[1743011362103,0.06224002,2008.7,2008.5,0.1186897]
[1743011362898,0.06224002,2008.7,2008.5,5.0974297]
[1743011363402,0.06224002,2008.7,2008.6,4.97859]
[1743011363598,7.96023363,2008.8,2008.5,5.0974297]
[1743011363900,0.06223363,2008.8,2008.6,5.74667]
[1743011364088,32.90851296,2009.1,2008.8,4.97785]
[1743011364288,4.96022642,2009.0,2008.8,4.97785]
[1743011364874,4.96022642,2009.0,2008.8,9.9558]
[1743011365401,4.96022642,2009.0,2008.8,9.95578]
[1743011365611,4.96022642,2009.0,2008.9,4.97784]
[1743011366203,4.96022642,2009.0,2008.8,4.97785]
[1743011366504,4.17951296,2008.9,2008.6,4.97858]
[1743011366674,0.06222749,2008.8,2008.6,4.97858]
[1743011368617,9.87579,2009.0,2008.6,4.97859]
[1743011368801,4.898,2009.0,2008.8,4.97808]
[1743011368985,4.96022586,2009.0,2008.7,10.75855]
[1743011369709,14.96022586,2009.0,2008.7,5.78024]
[1743011370028,14.898,2009.0,2008.7,5.78024]
[1743011370226,0.06222585,2008.9,2008.7,5.78024]
[1743011370407,0.06222585,2008.9,2008.7,10.75845]
[1743011370611,10.0,2009.0,2008.8,9.95603]
[1743011370920,10.0,2009.0,2008.8,4.97794]
[1743011371121,10.0,2009.0,2008.8,9.95593]
[1743011371296,10.0,2009.0,2008.9,4.97784]
[1743011371501,10.0,2009.0,2008.8,4.97794]
[1743011371878,10.0,2009.0,2008.9,4.97784]
[1743011373517,10.0,2009.0,2008.9,6.9794929]
[1743011373689,10.0,2009.0,2008.9,11.18481757]
[1743011374032,10.0,2009.0,2008.9,11.15900586]
[1743011374716,10.0,2009.0,2008.9,11.53139529]
[1743011376223,4.01165,2009.0,2008.9,21.20139529]
[1743011376423,0.06220882,2009.8,2009.5,5.73322]
[1743011376623,0.06220882,2009.8,2009.0,4.97748]
[1743011376624,9.15548296,2009.7,2009.4,4.97652]
[1743011376920,9.91518296,2009.7,2009.4,4.97652]
[1743011377122,4.93921296,2009.7,2009.4,4.97649]
[1743011377288,4.93921296,2009.7,2009.5,4.97628]
[1743011377482,9.46350818,2009.8,2009.5,4.97628]
[1743011377708,9.52551018,2009.8,2009.5,4.97628]
[1743011377926,9.15546296,2009.7,2009.3,5.73368]
[1743011378095,4.24171496,2009.7,2009.4,4.97652]
[1743011378283,9.21757496,2009.7,2009.3,5.73368]
[1743011378919,9.21757496,2009.7,2009.3,10.71039]
[1743011379118,4.24171496,2009.7,2009.4,4.97659]
[1743011379530,4.24171496,2009.7,2009.4,9.95307]
[1743011379890,4.24171496,2009.7,2009.4,4.97648]
[1743011380928,9.21757496,2009.7,2009.3,10.71046]
[1743011381428,9.21757496,2009.7,2009.4,4.97653]
[1743011381614,4.24171496,2009.7,2009.4,4.97653]
[1743011382310,9.21762496,2009.7,2009.4,4.97653]
[1743011382842,4.24171496,2009.7,2009.4,4.97653]
[1743011383129,9.21759496,2009.7,2009.3,7.51413729]
[1743011383489,9.21759496,2009.7,2009.3,12.49087729]
[1743011383990,9.21759496,2009.7,2009.4,4.97652]
[1743011385333,9.21759496,2009.7,2009.3,7.51412729]
[1743011386636,9.21759496,2009.7,2009.4,4.97658]
[1743011388244,9.21759496,2009.7,2009.1,6.8879]
[1743011388245,4.94691296,2009.5,2009.1,6.8879]
[1743011388407,4.17951296,2009.3,2008.9,4.97765]
[1743011388743,4.97687,2009.3,2009.0,4.97752]
[1743011389290,7.894,2009.5,2009.0,1.782917]
[1743011389596,4.894,2009.5,2009.3,10.74078]
[1743011389998,4.894,2009.5,2009.3,5.76403]
[1743011390197,3.06220577,2009.6,2009.3,10.7408]
[1743011390424,3.06220578,2009.7,2009.4,4.97646]
[1743011391022,8.03809578,2009.7,2009.4,4.97646]
[1743011391934,0.06220578,2009.7,2009.5,4.97631]
[1743011392138,3.0,2009.8,2009.5,4.97621]
[1743011392309,8.03785018,2009.8,2009.5,4.97621]
[1743011393151,3.06220018,2009.8,2009.5,4.97621]
[1743011393335,3.0,2009.8,2009.5,4.97621]
[1743011393533,3.0,2009.8,2009.5,6.1576339]
[1743011393708,3.06220018,2009.8,2009.5,1.1814239]
[1743011394041,3.06220018,2009.8,2009.5,6.1577639]
[1743011394219,3.42955352,2009.8,2009.5,6.1576039]
[1743011394620,8.40523352,2009.8,2009.5,6.1576039]
[1743011394820,3.42955352,2009.8,2009.5,6.1576039]
[1743011395221,8.40517352,2009.8,2009.5,6.1576039]
[1743011395749,3.42955352,2009.8,2009.5,11.1338439]
[1743011395950,8.40517352,2009.8,2009.5,6.1576039]
[1743011398013,3.42955352,2009.8,2009.5,11.1338739]
[1743011398215,3.42955352,2009.8,2009.5,11.1338839]
[1743011398519,3.0,2009.9,2009.6,6.19669329]
[1743011398749,3.06219675,2009.9,2009.6,6.19669329]
[1743011398915,3.43407562,2009.9,2009.6,11.17272329]
[1743011399254,3.43407562,2009.9,2009.6,11.17268329]
[1743011399415,3.43407562,2009.9,2009.6,7.00379329]
[1743011399617,3.37187887,2009.9,2009.6,7.00379329]
[1743011399816,3.4340753,2009.9,2009.6,7.00379329]
[1743011400120,8.4094753,2009.9,2009.6,7.00379329]
[1743011400338,13.3850153,2009.9,2009.5,4.97633]
[1743011400547,8.34727887,2009.9,2009.6,4.97609]
[1743011400752,8.4094753,2009.9,2009.6,4.97609]
[1743011400919,3.4340753,2009.9,2009.6,9.95206]
[1743011401121,3.0,2009.9,2009.7,5.970856]
[1743011401417,3.0,2009.9,2009.7,10.946566]
[1743011401731,3.0,2009.9,2009.8,4.97561]
[1743011402549,3.0,2009.9,2009.7,6.749156]
[1743011402747,4.95519518,2010.0,2009.7,11.724866]
[1743011402954,4.95519518,2010.0,2009.8,1.27171471]
[1743011403158,4.95519518,2010.0,2009.8,6.24731471]
[1743011403354,29.4972,2010.2,2009.8,1.27171471]
[1743011403658,3.06218972,2010.1,2009.8,6.24731471]
[1743011403827,3.06218972,2010.1,2009.9,1.20014447]
[1743011404634,3.06218972,2010.1,2009.9,6.17538447]
[1743011405361,3.0,2010.1,2009.9,6.17538447]
[1743011405853,28.73,2010.2,2010.0,4.97498]
[1743011406060,31.73,2010.2,2010.0,5.79698]
[1743011406267,31.73,2010.2,2010.0,1.4951913]
[1743011406426,36.70466,2010.2,2010.0,1.4951913]
[1743011406628,31.73,2010.2,2010.0,6.4702713]
[1743011406828,28.73,2010.2,2010.1,4.97487]
[1743011407024,28.73,2010.2,2010.1,1.14451413]
[1743011407258,28.73,2010.2,2010.1,6.11938413]
[1743011407757,28.73,2010.2,2010.1,1.14451413]
[1743011407940,28.73,2010.2,2010.1,6.11938413]
[1743011408146,28.73,2010.2,2010.1,6.89258413]
[1743011408760,29.5195,2010.2,2010.0,1.4951913]
[1743011408924,4.9752,2010.0,2009.6,5.7491]
[1743011409126,0.06219419,2009.9,2009.6,9.95182]
[1743011409356,5.03739506,2010.0,2009.7,4.97582]
[1743011409737,3.0,2010.0,2009.9,4.97537]
[1743011409943,5.3204959,2010.1,2009.9,5.555607]
[1743011410261,5.3204959,2010.1,2009.8,4.97555]
[1743011410450,5.3204959,2010.1,2009.7,5.80452]
[1743011410653,10.2954559,2010.1,2009.7,10.78025]
[1743011410867,4.892,2010.1,2010.0,4.97512]
[1743011411029,0.06218714,2010.3,2010.1,4.97483]
[1743011411231,3.06218274,2010.4,2010.2,0.497483]
[1743011411957,3.06218274,2010.4,2010.2,5.472103]
[1743011412161,33.609,2010.5,2010.2,5.471973]
[1743011412462,33.609,2010.5,2010.3,4.97438]
[1743011412834,33.609,2010.5,2010.3,4.97429]
[1743011412835,28.718,2010.5,2010.3,4.97429]
[1743011413035,28.718,2010.5,2010.4,5.5213073]
[1743011413658,28.718,2010.5,2010.4,0.5471773]
[1743011414284,33.65121296,2010.5,2009.9,5.76865]
[1743011414565,4.95318773,2010.4,2010.2,4.97454]
[1743011414929,9.92733773,2010.4,2010.1,4.97486]
[1743011415152,9.86515,2010.4,2010.1,1.074326]
[1743011415359,4.891,2010.4,2010.1,6.049076]
[1743011415553,4.891,2010.4,2010.2,4.97441]
[1743011415755,4.891,2010.4,2010.3,4.97438]
[1743011415986,4.891,2010.4,2010.2,5.75401]
[1743011416182,4.891,2010.4,2010.3,5.6572136]
[1743011416688,28.718,2010.5,2010.3,10.6314436]
[1743011417384,2.80380326,2010.8,2010.3,0.6828336]
[1743011417568,3.0,2010.7,2010.5,4.97371]